[Event "MPL 47th National Women Chess-ch 2022"]
[Site "Odisha"]
[Date "2022.02.26"]
[Round "4.14"]
[White "Singh, Neha"]
[Black "Savitha Shri B"]
[Result "0-1"]
[ECO "B42"]
[WhiteElo "1833"]
[BlackElo "2257"]
[Annotator "ChessBase"]
[PlyCount "105"]
[EventDate "2022.02.25"]
[EventCountry "IND"]
[SourceTitle "playchess.com"]
[Source "ChessBase"]
[SourceQuality "1"]
[TimeControl "5400+30"]

1. e4 {[%emt 0:00:03]} c5 {[%emt 0:01:53]} 2. Nf3 {[%emt 0:00:05]} e6 {[%emt 0:00:06]} 3. d4 {[%emt 0:00:14]} cxd4 {[%emt 0:00:07]} 4. Nxd4 {[%emt 0:00:02]} a6 {[%emt 0:00:09]} 5. Bd3 {[%emt 0:00:32]} Qc7 {[%emt 0:01:17]} 6. O-O {[%emt 0:01:49]} Nc6 {[%emt 0:00:28]} 7. Nb3 {[%emt 0:01:02]} b5 {[%emt 0:01:46]} 8. Nc3 {[%emt 0:00:11]} Bb7 {[%emt 0:01:14]} 9. f4 {[%emt 0:01:57]} Be7 {[%emt 0:14:00]} 10. Be3 {[%emt 0:01:41]} d6 {[%emt 0:02:53]} 11. Qf3 {[%emt 0:06:59]} Bf6 {[%emt 0:05:55]} 12. Qf2 {[%emt 0:03:22]} Rc8 {[%emt 0:03:55]} 13. Rad1 {[%emt 0:00:41]} Nge7 {[%emt 0:05:20]} 14. g4 {[%emt 0:16:16]} O-O {[%emt 0:01:27]} 15. e5 {[%emt 0:02:58]} Bxe5 {[%emt 0:18:57]} 16. fxe5 {[%emt 0:01:19]} Nxe5 {[%emt 0:00:15]} 17. Qg3 {[%emt 0:01:26]} b4 {[%emt 0:13:36]} 18. Ne4 {[%emt 0:03:42]} f5 {[%emt 0:00:52]} 19. Ng5 {[%emt 0:12:35]} Nxg4 {[%emt 0:05:05]} 20. Nd4 {[%emt 0:01:58]} Rf6 {[%emt 0:02:01]} 21. h3 {[%emt 0:12:38]} Nxe3 {[%emt 0:03:00]} 22. Qxe3 {[%emt 0:01:28]} Nd5 {[%emt 0:04:03]} 23. Qg3 {[%emt 0:05:04]} Qc5 {[%emt 0:01:20]} 24. Kh2 {[%emt 0:11:04]} Nc7 {[%emt 0:02:36]} 25. Qh4 {[%emt 0:05:35]} Rh6 {[%emt 0:04:14]} 26. Qg3 {[%emt 0:02:35]} Rf8 {[%emt 0:02:57]} 27. Ngf3 {[%emt 0:02:31]} Rg6 {[%emt 0:01:37]} 28. Qf2 {[%emt 0:00:10]} Nd5 {[%emt 0:00:25]} 29. Rg1 {[%emt 0:00:33]} Rff6 {[%emt 0:00:51]} 30. Rxg6 {[%emt 0:00:28]} Rxg6 {[%emt 0:00:15]} 31. Rg1 {[%emt 0:00:56]} Nf6 {[%emt 0:01:08]} 32. Rxg6 {[%emt 0:00:13]} hxg6 {[%emt 0:00:01]} 33. Qg1 {[%emt 0:00:56]} e5 {[%emt 0:00:25]} 34. Ne6 {[%emt 0:02:06]} Qc8 {[%emt 0:03:22]} 35. Nfg5 {[%emt 0:00:10]} e4 {[%emt 0:00:00]} 36. Qd4 {[%emt 0:01:25]} exd3 {[%emt 0:00:00]} 37. Qxd3 {[%emt 0:00:23]} Ne4 {[%emt 0:00:00]} 38. Nf4 {[%emt 0:00:18]} Nxg5 {[%emt 0:00:19]} 39. Nxg6 {[%emt 0:00:45]} Qe6 {[%emt 0:01:00]} 40. Qxf5 {[%emt 0:01:19]} Qxf5 {[%emt 0:00:50]} 41. Ne7+ {[%emt 0:00:01]} Kf7 {[%emt 0:00:08]} 42. Nxf5 {[%emt 0:00:05]} Ne4 {[%emt 0:00:03]} 43. h4 {[%emt 0:00:24]} Bd5 {[%emt 0:00:22]} 44. Ne3 {[%emt 0:01:06]} Be6 {[%emt 0:01:12]} 45. Kg2 {[%emt 0:00:06]} Kg6 {[%emt 0:00:41]} 46. Kf3 {[%emt 0:00:25]} Nd2+ {[%emt 0:00:20]} 47. Kf4 {[%emt 0:01:07]} Nc4 {[%emt 0:00:20]} 48. Nd1 {[%emt 0:00:09]} Kh5 {[%emt 0:00:10]} 49. Kg3 {[%emt 0:00:10]} a5 {[%emt 0:00:47]} 50. b3 {[%emt 0:00:24]} Na3 {[%emt 0:00:20]} 51. Ne3 {[%emt 0:01:56]} Nb1 {[%emt 0:00:26]} 52. Ng2 {[%emt 0:00:20]} Kh6 {[%emt 0:00:13]} 53. Nf4 {[%emt 0:01:18]} 0-1

[Event "MPL 47th National Women Chess-ch 2022"]
[Site "Odisha"]
[Date "2022.03.01"]
[Round "8.7"]
[White "Deodhar, Vrushali Umesh"]
[Black "Srija, Seshadri"]
[Result "0-1"]
[ECO "A25"]
[WhiteElo "1974"]
[BlackElo "2219"]
[Annotator "RC"]
[PlyCount "60"]
[EventDate "2022.02.25"]
[EventCountry "IND"]
[SourceTitle "playchess.com"]
[Source "ChessBase"]
[SourceQuality "1"]
[TimeControl "5400+30"]

1. c4 {[%emt 0:00:03]} e5 {[%emt 0:00:08]} 2. Nc3 {[%emt 0:00:09]} Nc6 {[%emt 0:00:07]} 3. g3 {[%emt 0:00:28]} g6 {[%emt 0:00:14]} 4. Bg2 {[%emt 0:00:05]} Bg7 {[%emt 0:00:06]} 5. d3 {[%emt 0:00:13]} d6 {[%emt 0:00:20]} 6. Rb1 {[%emt 0:01:15]} a5 {[%emt 0:01:16]} 7. a3 {[%emt 0:00:05]} Be6 {[%emt 0:01:23]} 8. b4 {[%emt 0:07:48]} axb4 {[%emt 0:00:16]} 9. axb4 {[%emt 0:00:02]} Qd7 {[%emt 0:00:52]} 10. b5 {[%emt 0:00:34]} Nd8 {[%emt 0:00:15]} 11. h3 {[%emt 0:00:12]} Ne7 {[%emt 0:02:54]} 12. Nd5 {[%emt 0:00:26]} O-O {[%emt 0:02:42]} 13. e3 {[%emt 0:00:22]} Nc8 {[%emt 0:09:20]} 14. Ne2 {[%emt 0:09:07]} c6 {[%emt 0:01:56]} 15. bxc6 {[%emt 0:01:34]} bxc6 {[%emt 0:00:06]} 16. Nb4 {[%emt 0:01:26]} Ne7 {[%emt 0:04:57]} 17. Bb2 {[%emt 0:02:55]} Nb7 {[%emt 0:04:15]} 18. h4 {[%emt 0:05:38]} d5 {[%emt 0:13:31]} 19. cxd5 {[%emt 0:03:02]} Nxd5 {[%emt 0:00:31]} 20. Nxd5 {[%emt 0:00:46]} Bxd5 {[%emt 0:00:21]} 21. O-O {[%emt 0:00:55]} Bxg2 {[%emt 0:14:04]} 22. Kxg2 {[%emt 0:00:02]} Rfd8 {[%emt 0:05:33]} 23. d4 {[%emt 0:02:54]} exd4 {[%emt 0:04:43]} 24. Bxd4 {[%emt 0:03:18]} c5 {[%emt 0:00:41]} 25. Qc2 {[%emt 0:13:59]} cxd4 {[%emt 0:00:43]} 26. Nxd4 {[%emt 0:00:06]} Bxd4 {[%emt 0:00:58]} 27. exd4 {[%emt 0:00:08]} Qd5+ {[%emt 0:00:38]} 28. Kg1 {[%emt 0:00:27]} Nd6 {[%emt 0:00:27]} 29. Qd2 {[%emt 0:00:54]} Ra2 {[%emt 0:02:28]} 30. Qf4 {[%emt 0:00:21]} Nb5 {[%emt 0:01:49]} 0-1

[Event "MPL 47th National Women Chess-ch 2022"]
[Site "Odisha"]
[Date "2022.03.02"]
[Round "9.10"]
[White "Ghosh Samriddhaa"]
[Black "Sahithi Varshini M"]
[Result "0-1"]
[ECO "B92"]
[WhiteElo "1910"]
[BlackElo "2238"]
[Annotator "ChessBase"]
[PlyCount "82"]
[EventDate "2022.02.25"]
[EventCountry "IND"]
[SourceTitle "playchess.com"]
[Source "ChessBase"]
[SourceQuality "1"]
[TimeControl "5400+30"]

1. e4 {[%emt 0:00:17]} c5 {[%emt 0:00:13]} 2. Nf3 {[%emt 0:00:15]} d6 {[%emt 0:00:05]} 3. d4 {[%emt 0:00:07]} cxd4 {[%emt 0:00:08]} 4. Nxd4 {[%emt 0:00:07]} Nf6 {[%emt 0:00:06]} 5. Nc3 {[%emt 0:00:06]} a6 {[%emt 0:00:07]} 6. Be2 {[%emt 0:00:32]} e5 {[%emt 0:00:15]} 7. Nb3 {[%emt 0:00:19]} Be7 {[%emt 0:00:20]} 8. O-O {[%emt 0:00:40]} O-O {[%emt 0:00:06]} 9. Be3 {[%emt 0:00:17]} Be6 {[%emt 0:01:12]} 10. Qd2 {[%emt 0:01:12]} Nbd7 {[%emt 0:01:37]} 11. a4 {[%emt 0:00:35]} Rc8 {[%emt 0:06:37]} 12. a5 {[%emt 0:00:31]} Qc7 {[%emt 0:00:41]} 13. Rfd1 {[%emt 0:01:43]} Rfe8 {[%emt 0:08:29]} 14. f3 {[%emt 0:03:22]} h6 {[%emt 0:04:46]} 15. Nc1 {[%emt 0:05:37]} Bf8 {[%emt 0:15:25]} 16. Bf1 {[%emt 0:09:45]} Red8 {[%emt 0:05:31]} 17. Qf2 {[%emt 0:07:03]} Qc6 {[%emt 0:03:11]} 18. Qd2 {[%emt 0:23:32]} Qc7 {[%emt 0:03:15]} 19. Qf2 {[%emt 0:02:08]} Nc5 {[%emt 0:04:19]} 20. Nd5 {[%emt 0:01:46]} Bxd5 {[%emt 0:02:34]} 21. exd5 {[%emt 0:00:06]} e4 {[%emt 0:00:32]} 22. c4 {[%emt 0:02:05]} Re8 {[%emt 0:02:28]} 23. Bd4 {[%emt 0:02:29]} exf3 {[%emt 0:03:09]} 24. Qxf3 {[%emt 0:03:00]} Ncd7 {[%emt 0:04:34]} 25. b3 {[%emt 0:01:06]} Ne5 {[%emt 0:02:17]} 26. Qf5 {[%emt 0:06:18]} Qd8 {[%emt 0:07:10]} 27. Be2 {[%emt 0:02:00]} g6 {[%emt 0:00:48]} 28. Qh3 {[%emt 0:02:53]} Bg7 {[%emt 0:01:12]} 29. Bd3 {[%emt 0:07:24]} Nfg4 {[%emt 0:03:37]} 30. Ne2 {[%emt 0:08:38]} Qg5 {[%emt 0:02:18]} 31. Ra2 {[%emt 0:04:51]} Rc7 {[%emt 0:11:50]} 32. Qg3 {[%emt 0:05:46]} Rce7 {[%emt 0:01:11]} 33. h4 {[%emt 0:00:00]} Qh5 {[%emt 0:03:43]} 34. Nf4 {[%emt 0:00:00]} Nxd3 {[%emt 0:01:18]} 35. Nxh5 {[%emt 0:00:00]} Bxd4+ {[%emt 0:00:05]} 36. Kh1 {[%emt 0:00:34]} Ndf2+ {[%emt 0:01:21]} 37. Rxf2 {[%emt 0:00:17]} Nxf2+ {[%emt 0:00:09]} 38. Kh2 {[%emt 0:00:29]} Nxd1 {[%emt 0:00:31]} 39. Qd3 {[%emt 0:01:31]} Be5+ {[%emt 0:00:27]} 40. Ng3 {[%emt 0:00:29]} Nf2 {[%emt 0:00:17]} 41. Qf3 {[%emt 0:00:20]} Ne4 {[%emt 0:00:24]} 0-1

[Event "MPL 47th National Women Chess-ch 2022"]
[Site "Odisha"]
[Date "2022.03.02"]
[Round "9.11"]
[White "Salonika, Saina"]
[Black "Jyothsna L"]
[Result "1/2-1/2"]
[ECO "C01"]
[WhiteElo "2206"]
[BlackElo "2052"]
[Annotator "ChessBase"]
[PlyCount "41"]
[EventDate "2022.02.25"]
[EventCountry "IND"]
[SourceTitle "playchess.com"]
[Source "ChessBase"]
[SourceQuality "1"]
[TimeControl "5400+30"]

1. e4 {[%emt 0:00:05]} e6 {[%emt 0:01:05]} 2. d4 {[%emt 0:00:06]} d5 {[%emt 0:00:10]} 3. exd5 {[%emt 0:00:04]} exd5 {[%emt 0:00:09]} 4. Bd3 {[%emt 0:00:02]} Nc6 {[%emt 0:00:34]} 5. c3 {[%emt 0:00:05]} Bd6 {[%emt 0:00:21]} 6. Ne2 {[%emt 0:00:07]} Nge7 {[%emt 0:06:21]} 7. Qc2 {[%emt 0:02:31]} Bg4 {[%emt 0:08:03]} 8. Nf4 {[%emt 0:05:50]} Qd7 {[%emt 0:09:12]} 9. h3 {[%emt 0:02:24]} Bxf4 {[%emt 0:04:32]} 10. Bxf4 {[%emt 0:00:09]} Bf5 {[%emt 0:04:18]} 11. Na3 {[%emt 0:03:17]} O-O {[%emt 0:10:10]} 12. O-O-O {[%emt 0:04:26]} a6 {[%emt 0:03:02]} 13. g4 {[%emt 0:01:29]} Bg6 {[%emt 0:02:49]} 14. h4 {[%emt 0:10:43]} Qxg4 {[%emt 0:15:12]} 15. Bxc7 {[%emt 0:00:17]} Bxd3 {[%emt 0:01:05]} 16. Qxd3 {[%emt 0:00:10]} Kh8 {[%emt 0:00:17]} 17. Kb1 {[%emt 0:00:08]} Kg8 {[%emt 0:00:05]} 18. Kc1 {[%emt 0:00:03]} Kh8 {[%emt 0:00:10]} 19. Kb1 {[%emt 0:00:02]} Kg8 {[%emt 0:00:07]} 20. Kc1 {[%emt 0:00:02]} Kh8 {[%emt 0:00:10]} 21. Kb1 {[%emt 0:00:02]} 1/2-1/2

[Event "MPL 47th National Women Chess-ch 2022"]
[Site "Odisha"]
[Date "2022.03.02"]
[Round "9.12"]
[White "Pandey Srishti"]
[Black "Velpula Sarayu"]
[Result "1-0"]
[ECO "E94"]
[WhiteElo "2177"]
[BlackElo "1875"]
[Annotator "ChessBase"]
[PlyCount "109"]
[EventDate "2022.02.25"]
[EventCountry "IND"]
[SourceTitle "playchess.com"]
[Source "ChessBase"]
[SourceQuality "1"]
[TimeControl "5400+30"]

1. d4 {[%emt 0:00:06]} Nf6 {[%emt 0:00:15]} 2. c4 {[%emt 0:00:03]} g6 {[%emt 0:00:15]} 3. Nc3 {[%emt 0:00:14]} Bg7 {[%emt 0:00:17]} 4. e4 {[%emt 0:00:03]} d6 {[%emt 0:00:19]} 5. Nf3 {[%emt 0:00:43]} O-O {[%emt 0:00:26]} 6. Be2 {[%emt 0:00:06]} Nbd7 {[%emt 0:00:29]} 7. O-O {[%emt 0:00:28]} e5 {[%emt 0:00:20]} 8. Be3 {[%emt 0:00:40]} Qe7 {[%emt 0:00:58]} 9. Qc2 {[%emt 0:02:51]} c6 {[%emt 0:00:33]} 10. d5 {[%emt 0:00:12]} c5 {[%emt 0:00:58]} 11. Nd2 {[%emt 0:01:39]} Ne8 {[%emt 0:02:04]} 12. g4 {[%emt 0:01:00]} Ndf6 {[%emt 0:08:01]} 13. Qd1 {[%emt 0:02:12]} Qd7 {[%emt 0:01:46]} 14. f3 {[%emt 0:08:28]} h5 {[%emt 0:00:42]} 15. g5 {[%emt 0:08:23]} Nh7 {[%emt 0:00:06]} 16. Kh1 {[%emt 0:00:15]} Kh8 {[%emt 0:14:49]} 17. Rg1 {[%emt 0:00:04]} Rg8 {[%emt 0:00:06]} 18. Nf1 {[%emt 0:03:34]} f6 {[%emt 0:02:59]} 19. gxf6 {[%emt 0:00:01]} Bxf6 {[%emt 0:00:06]} 20. Qd2 {[%emt 0:00:02]} Qf7 {[%emt 0:04:52]} 21. a4 {[%emt 0:00:42]} Be7 {[%emt 0:05:52]} 22. a5 {[%emt 0:03:18]} Nef6 {[%emt 0:00:39]} 23. b4 {[%emt 0:02:03]} cxb4 {[%emt 0:02:26]} 24. Nb5 {[%emt 0:00:21]} Bd7 {[%emt 0:09:23]} 25. Nxa7 {[%emt 0:01:04]} g5 {[%emt 0:01:17]} 26. Bd3 {[%emt 0:06:31]} g4 {[%emt 0:01:53]} 27. f4 {[%emt 0:05:12]} exf4 {[%emt 0:05:39]} 28. Bd4 {[%emt 0:00:02]} Ng5 {[%emt 0:00:51]} 29. Qxf4 {[%emt 0:02:04]} Qg7 {[%emt 0:00:08]} 30. Ng3 {[%emt 0:01:23]} Nh3 {[%emt 0:05:56]} 31. Qf1 {[%emt 0:01:22]} Qg5 {[%emt 0:00:54]} 32. Rg2 {[%emt 0:15:17]} Rgf8 {[%emt 0:00:22]} 33. Nb5 {[%emt 0:06:26]} Kg8 {[%emt 0:02:29]} 34. Qe1 {[%emt 0:02:03]} Nf4 {[%emt 0:02:29]} 35. Qd2 {[%emt 0:00:05]} Nh7 {[%emt 0:02:24]} 36. Be3 {[%emt 0:07:28]} Qe5 {[%emt 0:07:46]} 37. Rgg1 {[%emt 0:01:12]} Nxd3 {[%emt 0:01:26]} 38. Qxd3 {[%emt 0:00:01]} Rf3 {[%emt 0:00:31]} 39. Nd4 {[%emt 0:00:43]} Rff8 {[%emt 0:01:03]} 40. Ndf5 {[%emt 0:01:32]} Bg5 {[%emt 0:01:47]} 41. Bd4 {[%emt 0:00:23]} Qe8 {[%emt 0:00:05]} 42. Nxd6 {[%emt 0:00:55]} Qg6 {[%emt 0:00:05]} 43. c5 {[%emt 0:00:44]} Bf4 {[%emt 0:02:27]} 44. Nxb7 {[%emt 0:03:31]} h4 {[%emt 0:04:49]} 45. c6 {[%emt 0:03:07]} Bxc6 {[%emt 0:00:49]} 46. Nf5 {[%emt 0:05:44]} Rxf5 {[%emt 0:00:07]} 47. dxc6 {[%emt 0:01:01]} Rg5 {[%emt 0:00:15]} 48. Rgf1 {[%emt 0:01:51]} Be5 {[%emt 0:02:10]} 49. Qc4+ {[%emt 0:02:40]} Kh8 {[%emt 0:00:11]} 50. Bxe5+ {[%emt 0:01:41]} Rxe5 {[%emt 0:00:05]} 51. c7 {[%emt 0:01:03]} Rc8 {[%emt 0:00:28]} 52. Rad1 {[%emt 0:00:26]} Rxe4 {[%emt 0:00:46]} 53. Rd8+ {[%emt 0:00:15]} Re8 {[%emt 0:00:04]} 54. Rxe8+ {[%emt 0:03:14]} Qxe8 {[%emt 0:00:06]} 55. Nd6 {[%emt 0:00:04]} 1-0

[Event "MPL 47th National Women Chess-ch 2022"]
[Site "Odisha"]
[Date "2022.03.02"]
[Round "9.13"]
[White "Smaraki, Mohanty"]
[Black "Michelle Catherina, P."]
[Result "1-0"]
[ECO "A44"]
[WhiteElo "1725"]
[BlackElo "2176"]
[Annotator "NA"]
[PlyCount "79"]
[EventDate "2022.02.25"]
[EventCountry "IND"]
[SourceTitle "playchess.com"]
[Source "ChessBase"]
[SourceQuality "1"]
[TimeControl "5400+30"]

1. d4 {[%emt 0:00:28]} c5 {[%emt 0:01:28]} 2. d5 {[%emt 0:00:26]} e5 {[%emt 0:00:13]} 3. c4 {[%emt 0:00:51]} d6 {[%emt 0:00:39]} 4. e4 {[%emt 0:02:38]} g6 {[%emt 0:01:26]} 5. Nc3 {[%emt 0:00:47]} Bg7 {[%emt 0:00:57]} 6. h4 {[%emt 0:02:00]} Nf6 {[%emt 0:07:29]} 7. g3 {[%emt 0:02:46]} Na6 {[%emt 0:04:02]} 8. Bg2 {[%emt 0:01:15]} Nc7 {[%emt 0:03:28]} 9. Nge2 {[%emt 0:04:21]} a6 {[%emt 0:03:55]} 10. a4 {[%emt 0:00:24]} b6 {[%emt 0:06:04]} 11. f3 {[%emt 0:03:34]} Rb8 {[%emt 0:09:12]} 12. Kf2 {[%emt 0:15:42]} h5 {[%emt 0:06:39]} 13. Bg5 {[%emt 0:01:29]} b5 {[%emt 0:04:09]} 14. b3 {[%emt 0:23:53]} bxc4 {[%emt 0:09:11]} (14... b4 $11 15. Nb1 O-O) 15. bxc4 {[%emt 0:00:09]} Bd7 {[%emt 0:00:44]} 16. Qd3 {[%emt 0:03:33]} O-O {[%emt 0:04:47]} 17. Rhb1 {[%emt 0:01:05]} Rb4 {[%emt 0:02:44]} 18. a5 {[%emt 0:01:25]} Na8 {[%emt 0:08:08]} 19. Bd2 {[%emt 0:04:08]} Nh7 {[%emt 0:07:04]} 20. Rxb4 {[%emt 0:04:50]} cxb4 {[%emt 0:00:06]} 21. Nd1 {[%emt 0:01:10]} f5 {[%emt 0:05:59]} 22. Bxb4 {[%emt 0:01:19]} fxe4 {[%emt 0:06:24]} 23. Qxe4 {[%emt 0:00:07]} Bf5 {[%emt 0:00:46]} 24. Qe3 $16 {[%emt 0:00:03]} e4 {[%emt 0:00:45]} 25. Bc3 {[%emt 0:04:35]} exf3 {[%emt 0:04:18]} 26. Bxf3 {[%emt 0:00:02]} Bg4 {[%emt 0:00:31]} 27. Nf4 {[%emt 0:00:25]} Bxf3 {[%emt 0:02:03]} 28. Kxf3 {[%emt 0:01:20]} g5 {[%emt 0:00:37]} 29. hxg5 {[%emt 0:00:35]} Qxg5 {[%emt 0:00:37]} 30. Bxg7 {[%emt 0:11:10]} Qxg7 {[%emt 0:00:26]} 31. Rb1 {[%emt 0:00:30]} Nc7 {[%emt 0:00:34]} 32. Kg2 {[%emt 0:00:32]} h4 {[%emt 0:00:32]} 33. Rb7 {[%emt 0:01:37]} Ng5 {[%emt 0:00:25]} 34. Nf2 {[%emt 0:06:37]} Qf7 {[%emt 0:00:28]} 35. gxh4 {[%emt 0:00:12]} Nh7 {[%emt 0:00:38]} 36. Qg3+ {[%emt 0:00:06]} Kh8 {[%emt 0:00:26]} 37. Ng6+ {[%emt 0:00:05]} Kg8 {[%emt 0:00:27]} 38. Nxf8+ {[%emt 0:00:15]} Kxf8 {[%emt 0:00:10]} 39. Qf3 {[%emt 0:00:24]} Nf6 {[%emt 0:00:18]} 40. Rxc7 {[%emt 0:00:32]} 1-0

[Event "MPL 47th National Women Chess-ch 2022"]
[Site "Odisha"]
[Date "2022.03.02"]
[Round "9.14"]
[White "Kiran, Manisha Mohanty"]
[Black "Bristy Mukherjee"]
[Result "0-1"]
[ECO "B27"]
[WhiteElo "2168"]
[BlackElo "1856"]
[Annotator "ChessBase"]
[PlyCount "88"]
[EventDate "2022.02.25"]
[EventCountry "IND"]
[SourceTitle "playchess.com"]
[Source "ChessBase"]
[SourceQuality "1"]
[TimeControl "5400+30"]

1. e4 {[%emt 0:00:15]} g6 {[%emt 0:00:06]} 2. d4 {[%emt 0:00:10]} Bg7 {[%emt 0:00:04]} 3. Nc3 {[%emt 0:00:16]} c5 {[%emt 0:00:07]} 4. Be3 {[%emt 0:01:53]} Qa5 {[%emt 0:00:13]} 5. Nf3 {[%emt 0:00:54]} Nf6 {[%emt 0:04:13]} 6. Qd2 {[%emt 0:04:07]} cxd4 {[%emt 0:02:22]} 7. Nxd4 {[%emt 0:04:26]} Nc6 {[%emt 0:00:31]} 8. Be2 {[%emt 0:00:50]} Nxe4 {[%emt 0:01:14]} 9. Nxc6 {[%emt 0:02:44]} Qxc3 {[%emt 0:00:33]} 10. bxc3 {[%emt 0:00:11]} Nxd2 {[%emt 0:00:11]} 11. Nxe7 {[%emt 0:06:44]} Nc4 {[%emt 0:21:38]} 12. Bxc4 {[%emt 0:03:57]} Bxc3+ {[%emt 0:00:14]} 13. Ke2 {[%emt 0:00:04]} Kxe7 {[%emt 0:01:51]} 14. Rab1 {[%emt 0:00:05]} b6 {[%emt 0:03:05]} 15. Kd3 {[%emt 0:02:00]} Ba5 {[%emt 0:11:35]} 16. Bg5+ {[%emt 0:23:23]} f6 {[%emt 0:00:40]} 17. Rhe1+ {[%emt 0:00:24]} Bxe1 {[%emt 0:00:06]} 18. Rxe1+ {[%emt 0:00:03]} Kd6 {[%emt 0:00:20]} 19. Bxf6 {[%emt 0:01:08]} Bb7 {[%emt 0:00:18]} 20. Be5+ {[%emt 0:01:21]} Kc5 {[%emt 0:00:30]} 21. Bd4+ {[%emt 0:00:09]} Kd6 {[%emt 0:00:31]} 22. Bxh8 {[%emt 0:02:59]} Rxh8 {[%emt 0:00:18]} 23. f3 {[%emt 0:00:08]} Bc6 {[%emt 0:02:32]} 24. Kc3 {[%emt 0:11:07]} a5 {[%emt 0:05:02]} 25. a3 {[%emt 0:02:38]} Rc8 {[%emt 0:02:27]} 26. Kb3 {[%emt 0:01:54]} b5 {[%emt 0:02:24]} 27. Bd3 {[%emt 0:00:15]} Bd5+ {[%emt 0:00:26]} 28. Kb2 {[%emt 0:00:02]} Rb8 {[%emt 0:01:14]} 29. h4 {[%emt 0:09:26]} b4 {[%emt 0:11:01]} 30. a4 {[%emt 0:01:47]} Rg8 {[%emt 0:04:22]} 31. Re2 {[%emt 0:08:36]} Rc8 {[%emt 0:09:45]} 32. Ba6 {[%emt 0:06:26]} Rf8 {[%emt 0:02:10]} 33. Rd2 {[%emt 0:01:23]} Kc5 {[%emt 0:02:13]} 34. Bb5 {[%emt 0:01:52]} Rf4 {[%emt 0:06:34]} 35. h5 {[%emt 0:01:11]} gxh5 {[%emt 0:01:52]} 36. Bxd7 {[%emt 0:00:03]} Rd4 {[%emt 0:00:54]} 37. Kc1 {[%emt 0:02:34]} Rxd2 {[%emt 0:02:46]} 38. Kxd2 {[%emt 0:00:02]} Kd4 {[%emt 0:00:09]} 39. Bb5 {[%emt 0:01:25]} h6 {[%emt 0:01:18]} 40. Bd7 {[%emt 0:00:11]} h4 {[%emt 0:00:44]} 41. Be8 {[%emt 0:00:45]} h3 {[%emt 0:01:20]} 42. gxh3 {[%emt 0:00:03]} Bxf3 {[%emt 0:00:05]} 43. h4 {[%emt 0:00:34]} Be4 {[%emt 0:00:18]} 44. Bd7 {[%emt 0:00:37]} Kc5 {[%emt 0:01:27]} 0-1